bitfinex/quotes_BTCUSD_20240901
["timestamp","ask_amount","ask_price","bid_price","bid_amount"]
[1725198819237,0.003,58262.0,58261.0,0.97775618]
[1725198819745,0.003,58262.0,58261.0,0.63447418]
[1725198820225,0.003,58262.0,58261.0,0.78097418]
[1725198820529,0.003,58262.0,58261.0,0.26735287]
[1725198820710,0.517914,58262.0,58261.0,0.018]
[1725198821663,0.174638,58262.0,58261.0,0.018]
[1725198821905,0.003,58262.0,58261.0,0.018]
[1725198822130,0.86119,58262.0,58261.0,0.018]
[1725198822586,0.517914,58262.0,58261.0,0.018]
[1725198822818,0.343276,58262.0,58261.0,0.018]
[1725198823073,1.201466,58262.0,58261.0,0.018]
[1725198824321,0.514914,58262.0,58261.0,0.018]
[1725198824775,0.85819,58262.0,58261.0,0.018]
[1725198824995,0.85819,58262.0,58261.0,0.007]
[1725198825217,0.86319,58262.0,58261.0,0.007]
[1725198825444,0.176641,58261.0,58260.0,0.0008954]
[1725198825666,0.52335131,58261.0,58260.0,0.0008954]
[1725198825910,0.51835131,58261.0,58260.0,0.0008954]
[1725198826137,0.17506931,58261.0,58260.0,0.0008954]
[1725198826367,0.343282,58261.0,58260.0,0.0008954]
[1725198826594,0.858205,58261.0,58260.0,0.0008954]
[1725198826830,1.015005,58261.0,58260.0,0.0008954]
[1725198827060,1.360287,58261.0,58260.0,0.0008954]
[1725198827776,1.360287,58261.0,58260.0,0.0098954]
[1725198827777,1.359287,58261.0,58260.0,0.0098954]
[1725198828485,1.360287,58261.0,58260.0,0.0208954]
[1725198828958,1.822269,58261.0,58260.0,0.0208954]
[1725198829193,1.824269,58261.0,58260.0,0.0208954]
[1725198829653,1.825087,58261.0,58260.0,0.0208954]
[1725198829873,1.825087,58261.0,58260.0,0.0098954]
[1725198829874,1.824087,58261.0,58260.0,0.0098954]
[1725198830315,1.824087,58261.0,58260.0,0.0148954]
[1725198830533,1.924087,58261.0,58260.0,0.0148954]
[1725198831057,1.923087,58261.0,58260.0,0.0058954]
[1725198831291,1.95001369,58261.0,58260.0,0.0078954]
[1725198831524,1.95001369,58261.0,58260.0,0.0008954]
[1725198831988,1.95001369,58261.0,58260.0,0.0018954]
[1725198831989,1.61273169,58261.0,58260.0,0.0018954]
[1725198832222,1.34023169,58261.0,58260.0,0.0018954]
[1725198832453,1.34223169,58261.0,58260.0,0.0018954]
[1725198832694,1.34523169,58261.0,58260.0,0.0018954]
[1725198833838,0.55166769,58261.0,58260.0,0.0018954]
[1725198834063,0.55866769,58261.0,58260.0,0.0018954]
[1725198834293,0.55666769,58261.0,58260.0,0.0018954]
[1725198834523,0.89694969,58261.0,58260.0,0.0018954]
[1725198834742,1.23423169,58261.0,58260.0,0.0008954]
[1725198834977,1.23723169,58261.0,58260.0,0.0008954]
[1725198835195,1.24323169,58261.0,58260.0,0.0018954]
[1725198835437,1.24023169,58261.0,58260.0,0.0018954]
[1725198835665,1.24023169,58261.0,58260.0,0.0138954]
[1725198835666,1.214305,58261.0,58260.0,0.0138954]
[1725198835918,1.208305,58261.0,58260.0,0.0078954]
[1725198836193,1.207305,58261.0,58260.0,0.0008954]
[1725198836421,1.207305,58261.0,58260.0,0.0058954]
[1725198837346,1.207305,58261.0,58260.0,0.0078954]
[1725198837792,1.207305,58261.0,58260.0,0.0028954]
[1725198838013,1.550587,58261.0,58260.0,0.0048954]
[1725198838242,1.813787,58261.0,58260.0,0.0118954]
[1725198838724,1.810787,58261.0,58260.0,0.0008954]
[1725198838939,3.30529575,58261.0,58260.0,0.0058954]
[1725198839156,2.75733375,58261.0,58260.0,0.0078954]
[1725198839373,2.30174675,58261.0,58260.0,0.0028954]
[1725198839602,2.30092875,58261.0,58260.0,0.0028954]
[1725198839818,2.44332875,58261.0,58260.0,0.0098954]
[1725198840497,2.45032875,58261.0,58260.0,0.0078954]
[1725198840724,2.45032875,58261.0,58260.0,0.0118954]
[1725198840952,2.44832875,58261.0,58260.0,0.0118954]
[1725198841227,2.62942875,58261.0,58260.0,0.0118954]
[1725198841426,2.98171075,58261.0,58260.0,0.0010004]
[1725198841651,2.98071075,58261.0,58260.0,0.0010004]
[1725198841876,3.08303454,58261.0,58260.0,4e-07]
[1725198842114,2.837033,58261.0,58260.0,4e-07]
[1725198842335,2.844033,58261.0,58260.0,0.0010004]
[1725198842635,2.840033,58261.0,58260.0,0.0010004]
[1725198842860,4.204561,58261.0,58260.0,0.0020004]
[1725198843088,4.204561,58261.0,58260.0,0.0029002]
[1725198843317,2.840033,58261.0,58260.0,0.0019002]
[1725198843550,3.657493,58261.0,58260.0,0.0019002]
[1725198843775,3.657493,58261.0,58260.0,0.0018998]
[1725198844427,3.671493,58261.0,58260.0,0.0018998]
[1725198844888,3.657493,58261.0,58260.0,0.0008998]
[1725198845138,3.68442378,58261.0,58260.0,0.0008998]
[1725198845379,3.69842378,58261.0,58260.0,0.0008998]
[1725198845627,3.71242378,58261.0,58260.0,0.0008998]
[1725198845860,3.86697542,58261.0,58260.0,0.0008998]
[1725198846082,3.88097542,58261.0,58260.0,0.0008998]
[1725198846513,3.86697542,58261.0,58260.0,0.0008998]
[1725198846787,3.69842378,58261.0,58260.0,0.0008998]
[1725198847025,3.16004178,58261.0,58260.0,0.0008998]
[1725198847258,2.75413878,58261.0,58260.0,0.0008998]
[1725198847520,2.74013878,58261.0,58260.0,0.0008998]
[1725198847975,2.72613878,58261.0,58260.0,0.0008998]
[1725198848218,2.71213878,58261.0,58260.0,0.0008998]
[1725198848435,2.72613878,58261.0,58260.0,0.0008998]
[1725198849126,2.74513878,58261.0,58260.0,0.0008998]
[1725198849343,2.76813878,58261.0,58260.0,0.0008998]
[1725198849558,2.75413878,58261.0,58260.0,0.0008998]
[1725198850020,2.62548678,58261.0,58260.0,0.0008998]
[1725198850256,2.47730578,58261.0,58260.0,0.0008998]
[1725198850667,2.30112378,58261.0,58260.0,0.0008998]
[1725198850900,2.11102378,58261.0,58260.0,0.0008998]
[1725198851120,1.963693,58261.0,58260.0,0.0008998]
[1725198851340,1.834969,58261.0,58260.0,0.0008998]
[1725198851588,1.837969,58261.0,58260.0,0.0008998]
[1725198852047,2.510429,58261.0,58260.0,0.0008998]
[1725198852274,2.503429,58261.0,58260.0,0.0008998]
[1725198852507,2.684529,58261.0,58260.0,0.0008998]
[1725198852733,3.21036264,58261.0,58260.0,0.0008998]
[1725198854128,3.041811,58261.0,58260.0,0.0008998]
[1725198854326,2.404351,58261.0,58260.0,0.0008998]
[1725198854546,3.11497,58261.0,58260.0,0.0008998]
[1725198854775,1.201798,58246.0,58245.0,0.0008998]
[1725198856168,1.206798,58246.0,58245.0,0.0008998]
[1725198856663,1.23372926,58246.0,58245.0,0.0008998]
[1725198857422,3.17818204,58246.0,58245.0,0.0008998]
[1725198857645,2.88542626,58246.0,58245.0,0.0008998]
[1725198857870,1.814369,58246.0,58245.0,0.0008998]
[1725198858099,2.02791,58246.0,58245.0,0.0008998]
[1725198858546,2.04391,58246.0,58245.0,0.0008998]
[1725198858769,2.43056164,58246.0,58245.0,0.0008998]
[1725198858997,2.95430042,58246.0,58245.0,8e-07]
[1725198859228,2.68409164,58246.0,58245.0,8e-07]
[1725198859473,3.04046264,58246.0,58245.0,8e-07]
[1725198859922,3.02746264,58246.0,58245.0,8e-07]
[1725198860154,3.01346264,58246.0,58245.0,8e-07]
[1725198860393,3.07871911,58246.0,58245.0,8e-07]
[1725198860619,3.07871894,58246.0,58245.0,8e-07]
[1725198861072,3.04146264,58246.0,58245.0,8e-07]
[1725198861538,3.03746264,58246.0,58245.0,8e-07]
[1725198861951,3.06146264,58246.0,58245.0,8e-07]
[1725198861952,3.06146264,58246.0,58229.0,0.0008954]
[1725198861953,1.899057,58230.0,58229.0,0.0008954]
[1725198862188,4.410024,58230.0,58229.0,0.0008954]
[1725198862413,5.044518,58230.0,58229.0,0.0008954]
[1725198862644,4.056193,58230.0,58229.0,0.0008954]
[1725198862869,4.037931,58230.0,58229.0,0.0008954]
[1725198863102,4.172631,58230.0,58229.0,0.0008954]
[1725198863331,4.83091347,58230.0,58229.0,4e-07]
[1725198863554,2.91033947,58230.0,58229.0,4e-07]
[1725198864480,2.89433947,58230.0,58229.0,4e-07]
[1725198864709,2.89633947,58230.0,58229.0,4e-07]
[1725198865284,2.89633947,58230.0,58203.0,0.2941]
[1725198865285,1.553123,58210.0,58203.0,0.2941]
[1725198865496,1.97291,58210.0,58203.0,0.2941]
[1725198865730,1.209663,58204.0,58203.0,0.2941]
[1725198867095,1.210663,58204.0,58203.0,0.2941]
[1725198868041,1.210663,58204.0,58191.0,0.1634]
[1725198868042,1.209705,58202.0,58191.0,0.1634]
[1725198868296,2.116037,58202.0,58191.0,0.0004]
[1725198868515,2.202099,58202.0,58191.0,0.0004]
[1725198868731,2.081005,58202.0,58191.0,0.0004]
[1725198868939,2.071521,58202.0,58191.0,0.0004]
[1725198869158,1.33665882,58202.0,58191.0,0.0004]
[1725198870082,1.68028882,58202.0,58191.0,0.0004]
[1725198870299,1.90211882,58202.0,58191.0,0.0004]
[1725198870544,1.68028882,58202.0,58191.0,0.0004]
[1725198870748,1.33665882,58202.0,58191.0,0.0004]
[1725198870965,1.34165882,58202.0,58191.0,0.0004]
[1725198871604,1.35365882,58202.0,58191.0,0.0004]
[1725198871987,1.329705,58202.0,58191.0,0.0004]
[1725198872444,0.981075,58202.0,58201.0,0.303054]
[1725198872679,1.324705,58202.0,58201.0,0.303054]
[1725198872911,0.891075,58202.0,58201.0,0.303054]
[1725198873348,0.881075,58202.0,58201.0,0.303054]
[1725198873566,0.864075,58202.0,58201.0,0.303054]
[1725198873796,0.876075,58202.0,58201.0,0.303054]
[1725198874528,0.881075,58202.0,58201.0,0.303054]
[1725198874748,0.872075,58202.0,58201.0,0.303054]
[1725198875224,0.871075,58202.0,58201.0,0.303054]
[1725198875467,0.869075,58202.0,58201.0,0.3333594]
[1725198875926,0.869075,58202.0,58201.0,0.303054]
[1725198876854,0.89602502,58202.0,58201.0,0.303054]
[1725198878739,0.89802502,58202.0,58201.0,0.140054]
[1725198878960,0.89602502,58202.0,58201.0,0.140054]
[1725198879188,1.23965502,58202.0,58201.0,0.140054]
[1725198880343,0.89602502,58202.0,58201.0,0.140054]
[1725198880588,0.89602502,58202.0,58201.0,0.1540594]
[1725198881962,0.55239502,58202.0,58201.0,0.1540594]
[1725198882457,0.20876502,58202.0,58201.0,0.1540594]
[1725198882688,0.20876502,58202.0,58201.0,0.3183594]
[1725198883136,0.55239502,58202.0,58201.0,0.3183594]
[1725198884376,0.89602502,58202.0,58201.0,0.304354]
[1725198884768,0.869075,58202.0,58201.0,0.304354]
[1725198885037,0.525445,58202.0,58201.0,0.304354]
[1725198885264,0.176815,58202.0,58201.0,0.304354]
[1725198885480,0.176815,58202.0,58201.0,0.3347894]
[1725198885481,0.005,58202.0,58201.0,0.3347894]
[1725198885697,0.176815,58202.0,58201.0,0.304354]
[1725198886833,0.005,58202.0,58201.0,0.304354]
[1725198887046,0.005,58202.0,58201.0,0.476172]
[1725198887489,0.005,58202.0,58201.0,0.819808]
[1725198887719,0.005,58202.0,58201.0,0.936154]
[1725198887937,0.171802,58207.0,58203.0,0.1643]
[1725198888155,0.171802,58207.0,58203.0,0.1633]
[1725198888346,0.171795,58209.0,58201.0,0.600036]
[1725198888566,0.00842831,58211.0,58205.0,0.1296]
[1725198888800,0.343561,58214.0,58211.0,0.1296]
[1725198888801,0.17178,58214.0,58211.0,0.1296]
[1725198889020,0.171775,58216.0,58212.0,0.01296]
[1725198889237,0.005,58220.0,58212.0,0.01296]
[1725198889238,0.005,58220.0,58212.0,0.01196]
[1725198889455,0.005,58220.0,58217.0,0.171769]
[1725198889681,0.005,58220.0,58213.0,0.343565]
[1725198889682,0.02694433,58220.0,58215.0,0.171775]
[1725198889904,0.02694433,58220.0,58216.0,0.0527298]
[1725198890145,0.02694433,58220.0,58219.0,0.515295]
[1725198890365,0.02694433,58220.0,58219.0,0.171765]
[1725198890605,0.02694433,58220.0,58200.0,0.615463]
[1725198890606,0.09857412,58201.0,58200.0,0.615463]
[1725198890824,0.02694433,58220.0,58206.0,0.51541]
[1725198890825,0.001,58207.0,58206.0,0.51541]
[1725198891050,0.001,58207.0,58206.0,0.882017]
[1725198891274,0.001,58207.0,58206.0,1.1345187]
[1725198891768,0.03194433,58220.0,58206.0,1.1345187]
[1725198891769,0.176764,58220.0,58206.0,1.1345187]
[1725198891990,0.005,58221.0,58206.0,1.1345187]
[1725198891991,0.343519,58221.0,58212.0,0.1296]
[1725198892214,0.002,58219.0,58213.0,0.02914953]
[1725198892487,0.171771,58217.0,58213.0,0.02914953]
[1725198892701,0.171771,58217.0,58213.0,0.02814953]
[1725198892944,0.343484,58227.0,58214.0,0.03220495]
[1725198892945,0.171766,58219.0,58214.0,0.03220495]
[1725198893219,0.343508,58223.0,58214.0,0.03220495]
[1725198893220,0.171768,58218.0,58214.0,0.03220495]
[1725198893880,0.171774,58216.0,58214.0,0.03120495]
[1725198894579,0.002,58219.0,58214.0,0.20798395]
[1725198894800,0.001,58219.0,58215.0,0.19954699]
[1725198895453,0.001,58216.0,58215.0,0.19954699]
[1725198895891,0.002,58216.0,58215.0,0.19954699]
[1725198897238,0.001,58216.0,58215.0,0.19954699]
[1725198897456,0.002,58216.0,58215.0,0.20954699]
[1725198897679,0.172774,58216.0,58215.0,0.20954699]
[1725198897927,0.001,58216.0,58215.0,0.20954699]
[1725198898146,0.171763,58220.0,58215.0,0.20954699]
[1725198898147,0.167763,58220.0,58215.0,0.20954699]
[1725198898388,0.171765,58219.0,58216.0,0.04289929]
[1725198898634,0.343519,58221.0,58217.0,0.1583]
[1725198898635,0.171768,58218.0,58217.0,0.1583]
[1725198898854,0.515304,58218.0,58217.0,0.1583]
[1725198899080,0.515304,58218.0,58217.0,0.19295993]
[1725198901206,0.516304,58218.0,58217.0,0.20095993]
[1725198902014,0.516304,58218.0,58217.0,0.20695993]
[1725198902015,0.517304,58218.0,58217.0,0.20695993]
[1725198902229,0.173768,58218.0,58217.0,0.20695993]
[1725198902443,0.002,58218.0,58217.0,0.20695993]
[1725198902678,0.002,58218.0,58217.0,0.7257079]
[1725198902892,0.002,58218.0,58217.0,1.2196499]
[1725198903109,0.002,58218.0,58217.0,1.5631919]
[1725198903748,0.001,58218.0,58217.0,1.5551919]
[1725198904160,0.001,58218.0,58217.0,1.5621919]
[1725198904372,0.000819,58223.0,58222.0,0.515268]
[1725198904642,0.000819,58223.0,58222.0,0.7466593]
[1725198904855,0.000818,58246.0,58225.0,0.1517]
[1725198905055,0.171701,58241.0,58234.0,0.1517]
[1725198905266,0.343395,58242.0,58234.0,0.322419]
[1725198905267,0.171703,58240.0,58234.0,0.322419]
[1725198905510,0.000818,58246.0,58234.0,0.1507]
[1725198905511,0.171706,58239.0,58234.0,0.1507]
[1725198905728,0.344191,58246.0,58235.0,0.12493411]
[1725198905952,0.171702,58241.0,58236.0,0.02756341]
[1725198906184,0.000818,58246.0,58235.0,0.1205]
[1725198906425,0.000818,58246.0,58225.0,0.4755]
[1725198906426,0.002,58243.0,58225.0,0.4755]
[1725198906638,0.343467,58230.0,58225.0,0.4755]
[1725198906928,0.343467,58230.0,58222.0,0.185756]
[1725198906929,0.171718,58235.0,58229.0,0.171735]
[1725198907172,0.171718,58235.0,58230.0,0.01975759]
[1725198907386,0.000818,58246.0,58230.0,0.01975759]
[1725198907387,0.343406,58240.0,58230.0,0.01975759]
[1725198907639,0.000818,58246.0,58240.0,0.171702]
[1725198907640,0.002818,58246.0,58240.0,0.171702]
[1725198907834,0.002818,58246.0,58231.0,0.02643431]
[1725198907835,0.002818,58246.0,58238.0,0.171707]
[1725198907836,0.171691,58244.0,58238.0,0.171707]
[1725198908072,0.002818,58246.0,58233.0,0.343447]
[1725198908073,0.171694,58243.0,58239.0,0.0515131]
[1725198908292,0.001,58240.0,58237.0,0.17171]
[1725198908530,0.001,58240.0,58233.0,0.343447]
[1725198908531,0.001,58240.0,58238.0,0.323408]
[1725198908746,0.001,58240.0,58239.0,0.171706]
[1725198908957,0.001,58240.0,58238.0,0.1517]
[1725198908958,0.002,58240.0,58238.0,0.1517]
[1725198909170,0.002,58240.0,58239.0,0.1215]
[1725198909398,0.001,58240.0,58239.0,0.14882]
[1725198909628,0.172703,58240.0,58239.0,0.1215]
[1725198909853,0.171703,58240.0,58239.0,0.1215]
[1725198910043,0.171697,58242.0,58239.0,0.14882]
[1725198910471,0.003,58243.0,58239.0,0.14882]
[1725198910715,0.003,58243.0,58239.0,0.320526]
[1725198910934,0.003,58243.0,58239.0,0.14882]
[1725198911183,0.003,58243.0,58239.0,0.15725372]
[1725198911413,0.003,58243.0,58241.0,0.171698]
[1725198911634,0.000818,58246.0,58242.0,0.17513053]
[1725198911856,0.000818,58246.0,58242.0,0.00343353]
[1725198912325,0.000818,58246.0,58245.0,0.323388]
[1725198912994,0.000818,58246.0,58245.0,0.32682129]
[1725198913330,0.002818,58246.0,58245.0,0.35266222]
[1725198913651,0.002818,58246.0,58245.0,1.05898293]
[1725198913881,0.002818,58246.0,58245.0,0.20054093]
[1725198914106,0.002818,58246.0,58245.0,0.34922893]
[1725198914337,0.002818,58246.0,58245.0,1.03598293]
[1725198914815,0.002818,58246.0,58245.0,1.53075993]
[1725198915268,0.000818,58246.0,58245.0,1.53075993]
[1725198915735,0.000818,58246.0,58245.0,1.64475993]
[1725198915952,0.000818,58246.0,58245.0,1.65875993]
[1725198916390,0.000818,58246.0,58245.0,1.64475993]
[1725198916630,0.000818,58246.0,58245.0,1.65875993]
[1725198916881,0.000818,58261.0,58260.0,0.514932]
[1725198917144,0.000818,58261.0,58260.0,1.19694]
[1725198918574,0.000818,58261.0,58260.0,1.540228]
[1725198919302,0.000818,58261.0,58260.0,1.640228]
[1725198919560,0.000818,58261.0,58260.0,1.32494]
[1725198920328,0.000818,58261.0,58260.0,1.668228]
[1725198920571,0.01105769,58304.0,58260.0,1.668228]
[1725198920572,0.50540786,58299.0,58270.0,0.1284]
[1725198920804,0.50540786,58283.0,58280.0,0.171583]
[1725198921099,0.171569,58286.0,58280.0,0.171583]
[1725198921371,0.343112,58290.0,58281.0,0.171582]
[1725198921637,0.343056,58300.0,58281.0,1.17274324]
[1725198921870,0.00818,58305.0,58281.0,1.63090799]
[1725198922128,0.00818,58305.0,58292.0,0.86275]
[1725198922377,0.00818,58305.0,58292.0,1.19499093]
[1725198923319,0.00818,58305.0,58304.0,0.802943]
[1725198923580,0.00818,58305.0,58304.0,0.825943]
[1725198923828,0.00818,58305.0,58304.0,1.173972]
[1725198924067,0.00818,58305.0,58304.0,1.296292]
[1725198924323,0.00818,58305.0,58304.0,0.587234]
[1725198924557,0.00818,58305.0,58304.0,1.296292]
[1725198924775,0.00818,58305.0,58304.0,1.644321]
[1725198925254,0.00818,58305.0,58304.0,1.296292]
[1725198925491,0.00818,58305.0,58304.0,1.310292]
[1725198925735,0.00818,58305.0,58304.0,1.658321]
[1725198926054,0.00818,58305.0,58304.0,1.644321]
[1725198926280,0.00818,58305.0,58304.0,1.668321]
[1725198926527,0.00818,58305.0,58304.0,1.682321]
[1725198926752,0.00818,58305.0,58304.0,1.668321]
[1725198927398,0.00818,58305.0,58304.0,2.51135]
[1725198927612,0.00818,58305.0,58304.0,2.52535]
[1725198927850,0.00818,58320.0,58319.0,0.17147]
[1725198928059,0.0005,58341.0,58338.0,0.331414]
[1725198928496,0.0005,58341.0,58338.0,0.16]
[1725198928746,0.0005,58341.0,58338.0,0.331414]
[1725198928967,0.0005,58341.0,58338.0,0.16]
[1725198929434,0.0005,58341.0,58333.0,0.16]
[1725198929435,0.171907,58341.0,58333.0,0.16]
[1725198929675,0.171907,58341.0,58326.0,0.11]
[1725198929676,0.171429,58333.0,58332.0,0.0342865]
[1725198929910,0.0005,58341.0,58326.0,0.171448]
[1725198929911,0.1345,58338.0,58326.0,0.171448]
[1725198930168,0.342821,58340.0,58330.0,0.171435]
[1725198930355,0.171908,58341.0,58331.0,0.003428]
[1725198930575,0.171908,58341.0,58327.0,0.0171448]
[1725198930576,0.514634,58339.0,58338.0,0.014]
[1725198930807,0.671734,58339.0,58338.0,0.014]
[1725198931038,0.342861,58333.0,58322.0,0.16]
[1725198931245,0.0004,58339.0,58338.0,0.014]
[1725198931670,0.0004,58339.0,58338.0,0.114]
[1725198931907,0.0004,58339.0,58338.0,0.285414]
[1725198932117,0.0004,58339.0,58338.0,1.0018195]
[1725198932592,0.0004,58339.0,58338.0,1.369221]
[1725198932803,0.171362,58356.0,58340.0,0.342817]
[1725198933039,0.342721,58357.0,58341.0,0.442809]
[1725198933253,0.1345,58360.0,58341.0,0.123]
[1725198933469,0.171372,58353.0,58342.0,0.01985918]
[1725198933747,0.1345,58360.0,58342.0,0.016432]
[1725198933969,0.00818,58364.0,58339.0,0.50540786]
[1725198933970,0.472356,58351.0,58339.0,0.50540786]
[1725198934188,0.171363,58356.0,58348.0,0.171383]
[1725198934398,0.171363,58356.0,58340.0,0.17022736]
[1725198934399,0.1296,58358.0,58349.0,0.0171383]
[1725198934609,0.1296,58358.0,58341.0,0.008]
[1725198934610,0.342778,58347.0,58341.0,0.008]
[1725198934820,0.1296,58358.0,58341.0,0.008]
[1725198935036,0.514209,58342.0,58341.0,0.008]
[1725198935251,0.857015,58342.0,58341.0,0.008]
[1725198935460,0.171403,58342.0,58341.0,0.008]
[1725198935667,0.857015,58342.0,58341.0,0.008]
[1725198935876,0.986615,58342.0,58341.0,0.008]
[1725198936091,0.986615,58342.0,58335.0,0.1668]
[1725198936092,0.472406,58342.0,58335.0,0.1668]
[1725198936323,0.1296,58348.0,58339.0,0.014]
[1725198937016,0.171407,58341.0,58336.0,0.188099]
[1725198937242,0.342799,58344.0,58337.0,0.0354899]
[1725198937478,0.1296,58348.0,58337.0,0.0354899]
[1725198937479,0.171414,58338.0,58337.0,0.0354899]
[1725198937906,0.14866896,58338.0,58335.0,0.1668]
[1725198938114,0.34281,58342.0,58335.0,0.1668]
[1725198938339,0.171412,58339.0,58335.0,0.1668]
[1725198938775,0.342817,58341.0,58335.0,0.1668]
[1725198938776,0.171419,58337.0,58335.0,0.1668]
[1725198938986,0.342802,58343.0,58337.0,0.082737]
[1725198939190,0.171414,58338.0,58337.0,0.082737]
[1725198939616,0.514243,58338.0,58337.0,0.082737]
[1725198939818,0.857072,58338.0,58337.0,0.014]
[1725198940045,1.199901,58338.0,58337.0,0.014]
[1725198940483,1.199901,58338.0,58335.0,0.014]
[1725198940484,0.857102,58336.0,58335.0,0.014]
[1725198940736,0.342882,58329.0,58325.0,0.068743]
[1725198940955,0.51435,58326.0,58325.0,0.068743]
[1725198941191,0.171476,58317.0,58316.0,0.00818]
[1725198941419,0.857382,58317.0,58316.0,0.00818]
[1725198941638,0.1296,58321.0,58316.0,0.00818]
[1725198941863,0.171471,58319.0,58316.0,0.00818]
[1725198942119,0.342935,58320.0,58316.0,0.00818]
[1725198942348,0.514429,58317.0,58316.0,0.00818]
[1725198942558,0.857382,58317.0,58316.0,0.00818]
[1725198942999,1.200335,58317.0,58316.0,0.00818]
[1725198943456,0.857382,58317.0,58316.0,0.00818]
[1725198943942,0.857382,58317.0,58316.0,0.01618]
[1725198944394,0.857382,58317.0,58316.0,0.00818]
[1725198944609,0.857382,58317.0,58316.0,0.01618]
[1725198944817,0.857382,58317.0,58316.0,0.01818]
[1725198944818,1.370535,58317.0,58316.0,0.01818]
[1725198945177,1.504735,58317.0,58316.0,0.01818]
[1725198945178,1.161782,58317.0,58316.0,0.02718]
[1725198945374,1.161782,58317.0,58316.0,0.01818]
[1725198945776,1.161782,58317.0,58316.0,0.02618]
[1725198946256,1.504735,58317.0,58316.0,0.01618]
[1725198946898,1.504735,58317.0,58316.0,0.02418]
[1725198947323,1.504735,58317.0,58316.0,0.01618]
[1725198947770,1.504735,58317.0,58316.0,0.02518]
[1725198947980,1.504735,58317.0,58316.0,0.01718]
[1725198948198,1.504735,58317.0,58316.0,9.01718]
[1725198948414,1.504735,58317.0,58316.0,9.02518]
[1725198948632,1.161782,58317.0,58316.0,9.02518]
[1725198949052,1.504735,58317.0,58316.0,9.02518]
[1725198949327,0.1342,58324.0,58316.0,9.00818]
[1725198949563,0.171467,58320.0,58316.0,9.01818]
[1725198949787,0.171466,58321.0,58316.0,9.01818]
[1725198950008,0.171468,58320.0,58316.0,9.01818]
[1725198950218,0.342925,58322.0,58316.0,9.00818]
[1725198950387,0.514429,58317.0,58316.0,9.02418]
[1725198950558,0.857382,58317.0,58316.0,9.02418]
[1725198950934,0.857382,58317.0,58316.0,9.01518]
[1725198951192,0.342927,58322.0,58316.0,9.01918]
[1725198951417,0.171476,58317.0,58316.0,9.02518]
[1725198951674,0.171476,58317.0,58316.0,9.02018]
[1725198951675,0.514429,58317.0,58316.0,9.02018]
[1725198951925,0.857382,58317.0,58316.0,9.01618]
[1725198952179,0.857382,58317.0,58316.0,9.02418]
[1725198952682,0.857382,58317.0,58316.0,9.01818]
[1725198952921,0.857382,58317.0,58316.0,9.02718]
[1725198952922,1.200335,58317.0,58316.0,9.02718]
[1725198953579,1.200335,58317.0,58316.0,9.01718]
[1725198953800,1.200335,58317.0,58316.0,9.02418]
[1725198954257,1.200335,58317.0,58316.0,9.01718]
[1725198954478,1.200335,58317.0,58316.0,9.02518]
[1725198954727,1.360835,58317.0,58316.0,9.02518]
[1725198955171,1.492535,58317.0,58316.0,9.0260787]
[1725198955437,1.835488,58317.0,58316.0,9.0260787]
[1725198955932,1.492535,58317.0,58316.0,9.0260787]
[1725198958543,0.989082,58317.0,58316.0,9.0178987]
[1725198959004,1.01598019,58317.0,58316.0,9.0178987]
[1725198960859,0.989082,58317.0,58316.0,9.0178987]
[1725198961023,0.857382,58317.0,58316.0,9.0178987]
[1725198961416,0.857382,58317.0,58316.0,9.0166987]
[1725198961887,0.514429,58317.0,58316.0,9.0166987]
[1725198962370,1.017882,58317.0,58316.0,9.0166987]
[1725198962611,1.492535,58317.0,58316.0,9.0166987]
[1725198965178,0.857382,58317.0,58316.0,9.1723987]
[1725198965402,0.171446,58328.0,58316.0,9.1723987]
[1725198965646,0.171446,58328.0,58323.0,0.171457]
[1725198965647,0.171444,58328.0,58323.0,0.171457]
[1725198965879,0.1317,58336.0,58323.0,0.342916]
[1725198965880,0.342854,58334.0,58323.0,0.342916]
[1725198966112,0.171429,58333.0,58328.0,0.171444]
[1725198966340,0.1605,58341.0,58327.0,0.171446]
[1725198966341,0.171428,58334.0,58327.0,0.171446]
[1725198966569,0.342833,58338.0,58331.0,0.169434]
[1725198966808,0.342833,58338.0,58329.0,0.1341]
[1725198966809,0.171426,58334.0,58329.0,0.1375284]
[1725198967051,0.17143,58333.0,58328.0,0.171443]
[1725198967274,0.343651,58338.0,58328.0,0.171443]
[1725198967507,0.002,58333.0,58328.0,0.172443]
[1725198967736,0.002,58333.0,58329.0,0.171438]
[1725198968209,0.002,58333.0,58332.0,0.514296]
[1725198968916,0.004,58334.0,58333.0,0.514288]
[1725198969376,0.004,58334.0,58333.0,0.857147]
[1725198969829,0.000818,58338.0,58337.0,0.514252]
[1725198971003,0.000818,58338.0,58337.0,0.669952]
[1725198971242,0.000818,58338.0,58337.0,1.012787]
[1725198971490,0.000818,58338.0,58337.0,1.023787]
[1725198971935,0.000818,58338.0,58337.0,0.680952]
[1725198972405,0.000818,58338.0,58337.0,0.338117]
[1725198972633,0.000818,58338.0,58337.0,0.820052]
[1725198972873,0.000818,58338.0,58337.0,0.827052]
[1725198973544,0.000818,58338.0,58337.0,0.832052]
[1725198973769,0.000818,58338.0,58337.0,1.540722]
[1725198974001,0.000818,58338.0,58337.0,1.542722]
[1725198974247,0.50540786,58358.0,58337.0,1.542722]
[1725198974248,0.343517,58360.0,58345.0,0.1697]
[1725198974526,0.000817,58360.0,58351.0,0.171375]
[1725198974766,0.000817,58360.0,58355.0,0.171364]
[1725198974999,0.000817,58360.0,58350.0,0.342755]
[1725198975233,0.000817,58360.0,58352.0,0.171372]
[1725198975234,0.342707,58359.0,58352.0,0.171372]
[1725198975478,0.000817,58360.0,58350.0,0.342757]
[1725198975705,0.000817,58360.0,58345.0,0.1697]
[1725198975706,0.171361,58357.0,58351.0,0.171375]
[1725198975934,0.171363,58356.0,58348.0,0.342767]